fUSD/lending_fUSD_20241104
["ID","MTS","AMOUNT","RATE_DAILY","PERIOD"]
[341236900,1730711446290,-500.0,0.00038629,2]
[341236901,1730711446301,-618.92296108,0.00038629,2]
[341236902,1730711446311,-511.18642879,0.00038629,2]
[341236903,1730711446321,-500.0,0.00038629,2]
[341236904,1730711446331,-1398.78,0.00038629,2]
[341236905,1730711446341,-1238.48,0.00038629,2]
[341236906,1730711446351,-500.0,0.00038629,2]
[341236907,1730711446361,-500.0,0.00038629,2]
[341236908,1730711446371,-534.51713698,0.00038629,2]
[341236909,1730711446380,-1242.24,0.00038629,2]
[341236910,1730711446389,-500.0,0.00038629,2]
[341236911,1730711446399,-3905.42,0.00038629,2]
[341236912,1730711446408,-500.0,0.00038629,2]
[341236913,1730711446417,-500.0,0.00038629,2]
[341236914,1730711446426,-500.0,0.00038629,2]
[341236915,1730711446435,-500.0,0.00038629,2]
[341236916,1730711446445,-2432.18,0.00038847,2]
[341236917,1730711446454,-500.0,0.00038903,2]
[341236918,1730711446464,-684.44,0.00038903,2]
[341236919,1730711446474,-500.0,0.00038903,2]
[341236920,1730711446483,-500.0,0.00038903,2]
[341236921,1730711446493,-500.0,0.00038903,2]
[341236922,1730711446502,-3994.7,0.00038903,2]
[341236923,1730711446512,-500.0,0.00038903,2]
[341236924,1730711446522,-348.48072343,0.00038903,2]
[341236925,1730711446532,-1882.57,0.00038903,2]
[341236926,1730711446541,-500.0,0.00038903,2]
[341236927,1730711446551,-500.0,0.00038903,2]
[341236928,1730711446562,-511.75941178,0.00038903,2]
[341236929,1730711446571,-500.0,0.00038903,2]
[341236930,1730711446582,-500.0,0.00038903,2]
[341236931,1730711446591,-1176.28,0.00038903,2]
[341236932,1730711446601,-5855.7,0.00038903,2]
[341236933,1730711446610,-1152.43,0.00038903,2]
[341236934,1730711446619,-1681.01,0.00038903,2]
[341236935,1730711446629,-432.39803154,0.00038903,2]
[341236936,1730711446639,-500.0,0.00038903,2]
[341236937,1730711446648,-500.0,0.00038903,2]
[341236938,1730711446657,-1398.78,0.00038903,2]
[341236939,1730711446666,-1238.48,0.00038903,2]
[341236940,1730711446676,-500.0,0.00038903,2]
[341236941,1730711446685,-1242.24,0.00038903,2]
[341236942,1730711446694,-500.0,0.00038903,2]
[341236943,1730711446703,-3905.42,0.00038903,2]
[341236944,1730711446712,-500.0,0.00038903,2]
[341236945,1730711446721,-500.0,0.00038903,2]
[341236946,1730711446730,-500.0,0.00038903,2]
[341236947,1730711446739,-621.98342536,0.00038903,2]
[341236948,1730711446748,-6202.21691108,0.00039,5]
[341236949,1730711446759,-500.0,0.00039029,60]
[341236950,1730711446769,-500.0,0.00039037,2]
[341236951,1730711446778,-612.40851341,0.00039177,2]
[341236952,1730711446787,-684.44,0.00039177,2]
[341236953,1730711446797,-500.0,0.00039177,2]
[341236954,1730711446807,-500.0,0.00039177,2]
[341236955,1730711446816,-535.7091306,0.00039177,2]
[341236956,1730711446825,-3994.7,0.00039177,2]
[341236957,1730711446839,-500.0,0.00039177,2]
[341236958,1730711446850,-1882.57,0.00039177,2]
[341236959,1730711446859,-500.0,0.00039177,2]
[341236960,1730711446869,-500.0,0.00039177,2]
[341236961,1730711446879,-500.0,0.00039177,2]
[341236962,1730711446888,-500.0,0.00039177,2]
[341236963,1730711446898,-1176.28,0.00039177,2]
[341236964,1730711446908,-5855.7,0.00039177,2]
[341236965,1730711446918,-1152.43,0.00039177,2]
[341236966,1730711446927,-1681.01,0.00039177,2]
[341236967,1730711446937,-500.0,0.00039177,2]
[341236968,1730711446947,-500.0,0.00039177,2]
[341236969,1730711446956,-1398.78,0.00039177,2]
[341236970,1730711446965,-1238.48,0.00039177,2]
[341236971,1730711446975,-500.0,0.00039177,2]
[341236972,1730711446984,-1242.24,0.00039177,2]
[341236973,1730711446993,-500.0,0.00039177,2]
[341236974,1730711447002,-3905.42,0.00039177,2]
[341236975,1730711447012,-500.0,0.00039177,2]
[341236976,1730711447021,-500.0,0.00039177,2]
[341236977,1730711447031,-500.0,0.00039177,2]
[341236978,1730711447041,-2440.97,0.00039203,2]
[341236979,1730711447051,-169.11,0.00039318,2]
[341236980,1730711447060,-2432.18,0.00039424,2]
[341236981,1730711447070,-684.44,0.00039451,2]
[341236982,1730711447079,-500.0,0.00039451,2]
[341236983,1730711447089,-500.0,0.00039451,2]
[341236984,1730711447098,-3994.7,0.00039451,2]
[341236985,1730711447108,-500.0,0.00039451,2]
[341236986,1730711447118,-1882.57,0.00039451,2]
[341236987,1730711447127,-500.0,0.00039451,2]
[341236988,1730711447136,-500.0,0.00039451,2]
[341236989,1730711447146,-500.0,0.00039451,2]
[341236990,1730711447154,-440.67432006,0.00039451,2]
[341236991,1730711447164,-1176.28,0.00039451,2]
[341236992,1730711447173,-5855.7,0.00039451,2]
[341236993,1730711447183,-1152.43,0.00039451,2]
[341236994,1730711447192,-1681.01,0.00039451,2]
[341236995,1730711447202,-500.0,0.00039451,2]
[341236996,1730711447212,-500.0,0.00039451,2]
[341236997,1730711447221,-1398.78,0.00039451,2]
[341236998,1730711447231,-1238.48,0.00039451,2]
[341236999,1730711447240,-500.0,0.00039451,2]
[341237000,1730711447249,-1242.24,0.00039451,2]
[341237001,1730711447259,-500.0,0.00039451,2]
[341237002,1730711447269,-3905.42,0.00039451,2]
[341237003,1730711447278,-500.0,0.00039451,2]
[341237004,1730711447287,-500.0,0.00039451,2]
[341237005,1730711447297,-500.0,0.00039451,2]
[341237006,1730711447312,-761.94,0.00039486,2]
[341237007,1730711447322,-2500.0,0.00039561,2]
[341237008,1730711447333,-182.58,0.000396,7]
[341237009,1730711447342,-684.44,0.00039725,2]
[341237010,1730711447351,-500.0,0.00039725,2]
[341237011,1730711447360,-500.0,0.00039725,2]
[341237012,1730711447369,-3994.7,0.00039725,2]
[341237013,1730711447379,-435.08,0.00039725,2]
[341237014,1730711447388,-1882.57,0.00039725,2]
[341237015,1730711447397,-295.58339219,0.00039725,2]
[341237016,1730711447407,-500.0,0.00039725,2]
[341237017,1730711447416,-500.0,0.00039725,2]
[341237018,1730711447425,-1176.28,0.00039725,2]
[341237019,1730711447434,-5855.7,0.00039725,2]
[341237020,1730711447443,-1152.43,0.00039725,2]
[341237021,1730711447453,-1681.01,0.00039725,2]
[341237022,1730711447464,-500.0,0.00039725,2]
[341237023,1730711447473,-500.0,0.00039725,2]
[341237024,1730711447483,-1398.78,0.00039725,2]
[341237025,1730711447492,-1238.48,0.00039725,2]
[341237026,1730711447502,-244.59269799,0.00039725,2]
[341237027,1730711447512,-1242.24,0.00039725,2]
[341237028,1730711447521,-500.0,0.00039725,2]
[341237029,1730711447531,-3905.42,0.00039725,2]
[341237030,1730711447540,-500.0,0.00039725,2]
[341237031,1730711447549,-500.0,0.00039725,2]
[341237032,1730711447558,-500.0,0.00039725,2]
[341237033,1730711447569,-162.257385,0.00039778,2]
[341237034,1730711447580,-6625.84918332,0.0003986,2]
[341237035,1730711447589,-246.386,0.00039996,56]
[341237036,1730711447599,-684.44,0.00039999,2]
[341237037,1730711447608,-549.42143009,0.00039999,2]
[341237038,1730711447617,-500.0,0.00039999,2]
[341237039,1730711447626,-3994.7,0.00039999,2]
[341237040,1730711447635,-1882.57,0.00039999,2]
[341237041,1730711447645,-500.0,0.00039999,2]
[341237042,1730711447654,-500.0,0.00039999,2]
[341237043,1730711447663,-1176.28,0.00039999,2]
[341237044,1730711447672,-5855.7,0.00039999,2]
[341237045,1730711447682,-1152.43,0.00039999,2]
[341237046,1730711447691,-1681.01,0.00039999,2]
[341237047,1730711447700,-500.0,0.00039999,2]
[341237048,1730711447709,-500.0,0.00039999,2]
[341237049,1730711447718,-1398.78,0.00039999,2]
[341237050,1730711447727,-1238.48,0.00039999,2]
[341237051,1730711447736,-1242.24,0.00039999,2]
[341237052,1730711447745,-500.0,0.00039999,2]
[341237053,1730711447754,-3905.42,0.00039999,2]
[341237054,1730711447763,-500.0,0.00039999,2]
[341237055,1730711447772,-500.0,0.00039999,2]
[341237056,1730711447782,-500.0,0.00039999,2]
[341237057,1730711447791,-163.0,0.0004,120]
[341237058,1730711447800,-1020.98998965,0.0004,120]
[341237059,1730711447810,-498.21,0.0004,2]
[341237060,1730711447819,-3000.0,0.0004,2]
[341237061,1730711447832,-3000.0,0.0004,2]
[341237062,1730711447843,-3000.0,0.0004,2]
[341237063,1730711447852,-3000.0,0.0004,2]
[341237064,1730711447861,-3000.0,0.0004,2]
[341237065,1730711447871,-710.29,0.0004,2]
[341237066,1730711447880,-1661.64728234,0.0004,2]
[341237067,1730711447889,-152.92,0.0004,2]
[341237068,1730711447898,-152.92,0.0004,2]
[341237069,1730711447908,-152.92,0.0004,2]
[341237070,1730711447918,-2432.18,0.00040002,2]
[341237071,1730711447929,-150.0,0.000401,120]
[341237072,1730711447938,-12074.22,0.00040191,2]
[341237073,1730711447947,-640.0,0.0004021,2]
[341237074,1730711447959,-684.44,0.00040273,2]
[341237075,1730711447967,-500.0,0.00040273,2]
[341237076,1730711447977,-3994.7,0.00040273,2]
[341237077,1730711447986,-1882.57,0.00040273,2]
[341237078,1730711447995,-500.0,0.00040273,2]
[341237079,1730711448004,-500.0,0.00040273,2]
[341237080,1730711448014,-1176.28,0.00040273,2]
[341237081,1730711448023,-5855.7,0.00040273,2]
[341237082,1730711448032,-1152.43,0.00040273,2]
[341237083,1730711448042,-1681.01,0.00040273,2]
[341237084,1730711448156,-500.0,0.00040273,2]
[341237085,1730711448167,-387.32088067,0.00040273,2]
[341237086,1730711448176,-1398.78,0.00040273,2]
[341237087,1730711448185,-1238.48,0.00040273,2]
[341237088,1730711448195,-1242.24,0.00040273,2]
[341237089,1730711448204,-500.0,0.00040273,2]
[341237090,1730711448214,-3905.42,0.00040273,2]
[341237091,1730711448223,-500.0,0.00040273,2]
[341237092,1730711448232,-500.0,0.00040273,2]
[341237093,1730711448242,-500.0,0.00040273,2]
[341237094,1730711448251,-684.44,0.00040547,2]
[341237095,1730711448267,-500.0,0.00040547,2]
[341237096,1730711448277,-3994.7,0.00040547,2]
[341237097,1730711448286,-1882.57,0.00040547,2]
[341237098,1730711448295,-500.0,0.00040547,2]
[341237099,1730711448304,-500.0,0.00040547,2]
[341237100,1730711448314,-1176.28,0.00040547,2]
[341237101,1730711448323,-5855.7,0.00040547,2]
[341237102,1730711448332,-1152.43,0.00040547,2]
[341237103,1730711448342,-1681.01,0.00040547,2]
[341237104,1730711448351,-500.0,0.00040547,2]
[341237105,1730711448360,-1398.78,0.00040547,2]
[341237106,1730711448369,-1238.48,0.00040547,2]
[341237107,1730711448379,-1242.24,0.00040547,2]
[341237108,1730711448388,-530.96429985,0.00040547,2]
[341237109,1730711448398,-3905.42,0.00040547,2]
[341237110,1730711448408,-500.0,0.00040547,2]
[341237111,1730711448417,-500.0,0.00040547,2]
[341237112,1730711448426,-500.0,0.00040547,2]
[341237113,1730711448436,-684.44,0.00040821,2]
[341237114,1730711448445,-500.0,0.00040821,2]
[341237115,1730711448455,-3994.7,0.00040821,2]
[341237116,1730711448464,-1882.57,0.00040821,2]
[341237117,1730711448474,-500.0,0.00040821,2]
[341237118,1730711448483,-500.0,0.00040821,2]
[341237119,1730711448493,-1176.28,0.00040821,2]
[341237120,1730711448502,-5855.7,0.00040821,2]
[341237121,1730711448512,-1152.43,0.00040821,2]
[341237122,1730711448522,-1681.01,0.00040821,2]
[341237123,1730711448531,-500.0,0.00040821,2]
[341237124,1730711448540,-1398.78,0.00040821,2]
[341237125,1730711448550,-1238.48,0.00040821,2]
[341237126,1730711448560,-1242.24,0.00040821,2]
[341237127,1730711448569,-3905.42,0.00040821,2]
[341237128,1730711448579,-500.0,0.00040821,2]
[341237129,1730711448588,-500.0,0.00040821,2]
[341237130,1730711448597,-500.0,0.00040821,2]
[341237131,1730711448607,-360.0,0.00040963,2]
[341237132,1730711448616,-152.92,0.00041001,2]
[341237133,1730711448625,-3168.13,0.00041004,2]
[341237134,1730711448634,-5000.0,0.00041011,2]
[341237135,1730711448644,-98935.92276032,0.00041011,2]
[341237136,1730711448654,-1258.08,0.00041041,2]
[341237137,1730711448663,-1428.81,0.00041048,2]
[341237138,1730711448672,-4059.95,0.00041067,2]
[341237139,1730711448681,-684.44,0.00041095,2]
[341237140,1730711448690,-500.0,0.00041095,2]
[341237141,1730711448699,-3994.7,0.00041095,2]
[341237142,1730711448709,-1882.57,0.00041095,2]
[341237143,1730711448718,-500.0,0.00041095,2]
[341237144,1730711448727,-500.0,0.00041095,2]
[341237145,1730711448737,-1176.28,0.00041095,2]
[341237146,1730711448746,-5855.7,0.00041095,2]
[341237147,1730711448756,-1152.43,0.00041095,2]
[341237148,1730711448766,-1681.01,0.00041095,2]
[341237149,1730711448775,-500.0,0.00041095,2]
[341237150,1730711448784,-1398.78,0.00041095,2]
[341237151,1730711448793,-1238.48,0.00041095,2]
[341237152,1730711448804,-1242.24,0.00041095,2]
[341237153,1730711448817,-3905.42,0.00041095,2]
[341237154,1730711448829,-500.0,0.00041095,2]
[341237155,1730711448843,-500.0,0.00041095,2]
[341237156,1730711448855,-500.0,0.00041095,2]
[341237157,1730711448864,-157.0,0.00041096,2]
[341237158,1730711448873,-150.0,0.00041096,2]
[341237159,1730711448882,-1118.12,0.00041096,2]
[341237160,1730711448891,-1230.9241217,0.000411,2]
[341237161,1730711448900,-13241.1396,0.00041176,2]
[341237162,1730711448910,-5000.0,0.00041199,2]
[341237163,1730711448919,-5000.0,0.00041213,2]
[341237164,1730711448928,-5000.0,0.00041245,2]
[341237165,1730711448938,-5000.0,0.00041263,2]
[341237166,1730711448947,-152.92,0.00041334,2]
[341237167,1730711448956,-500.0,0.00041344,2]
[341237168,1730711448966,-500.0,0.00041344,2]
[341237169,1730711448975,-769.94,0.00041344,2]
[341237170,1730711448985,-500.0,0.00041344,2]
[341237171,1730711448994,-500.0,0.00041344,2]
[341237172,1730711449004,-500.0,0.00041344,2]
[341237173,1730711449013,-206.30706972,0.00041344,2]
[341237174,1730711449022,-503.82,0.00041344,2]
[341237175,1730711449032,-660.29,0.00041344,2]
[341237176,1730711449041,-171.375597,0.00041344,2]
[341237177,1730711449051,-156.116056,0.00041344,2]
[341237178,1730711449060,-500.0,0.00041344,2]
[341237179,1730711449070,-500.0,0.00041344,2]
[341237180,1730711449079,-500.0,0.00041344,2]
[341237181,1730711449088,-500.0,0.00041344,2]
[341237182,1730711449098,-500.0,0.00041344,2]
[341237183,1730711449107,-652.9,0.00041344,2]
[341237184,1730711449116,-500.0,0.00041344,2]
[341237185,1730711449125,-500.0,0.00041344,2]
[341237186,1730711449135,-500.0,0.00041344,2]
[341237188,1730711449144,-500.0,0.00041344,2]
[341237190,1730711449154,-500.0,0.00041344,2]
[341237192,1730711449163,-594.29303527,0.00041344,2]
[341237194,1730711449173,-500.0,0.00041344,2]
[341237196,1730711449182,-1934.72,0.00041344,2]
[341237198,1730711449191,-500.0,0.00041344,2]
[341237200,1730711449200,-500.0,0.00041344,2]
[341237202,1730711449209,-500.0,0.00041344,2]
[341237204,1730711449218,-500.0,0.00041344,2]
[341237206,1730711449227,-500.0,0.00041344,2]
[341237207,1730711449236,-1674.51,0.00041344,2]
[341237208,1730711449245,-500.0,0.00041344,2]
[341237209,1730711449254,-500.0,0.00041344,2]
[341237210,1730711449265,-500.0,0.00041344,2]
[341237211,1730711449274,-500.0,0.00041344,2]
[341237212,1730711449283,-500.0,0.00041344,2]
[341237213,1730711449293,-5000.0,0.00041345,2]
[341237214,1730711449302,-684.44,0.00041369,2]
[341237215,1730711449312,-500.0,0.00041369,2]
[341237216,1730711449321,-3994.7,0.00041369,2]
[341237218,1730711449330,-1882.57,0.00041369,2]
[341237219,1730711449339,-500.0,0.00041369,2]
[341237220,1730711449349,-500.0,0.00041369,2]
[341237221,1730711449359,-1176.28,0.00041369,2]
[341237222,1730711449369,-5855.7,0.00041369,2]
[341237223,1730711449380,-1152.43,0.00041369,2]
[341237224,1730711449390,-1681.01,0.00041369,2]
[341237225,1730711449399,-500.0,0.00041369,2]
[341237226,1730711449408,-1398.78,0.00041369,2]
[341237227,1730711449418,-1238.48,0.00041369,2]
[341237228,1730711449428,-1242.24,0.00041369,2]
[341237229,1730711449437,-3905.42,0.00041369,2]
[341237230,1730711449447,-500.0,0.00041369,2]
[341237232,1730711449456,-500.0,0.00041369,2]
[341237234,1730711449466,-500.0,0.00041369,2]
[341237235,1730711449476,-150.0,0.0004137,30]
[341237236,1730711449486,-150.0,0.0004137,30]
[341237237,1730711449495,-150.0,0.0004137,30]
[341237238,1730711449507,-156.45054821,0.0004137,30]
[341237239,1730711449516,-166.83172825,0.0004137,30]
[341237240,1730711449525,-25000.0,0.00041379,2]
[341237241,1730711449535,-150.0,0.00041379,2]
[341237243,1730711449544,-6625.84918332,0.00041397,120]
[341237244,1730711449554,-1758.13,0.00041416,2]
[341237245,1730711449563,-152.92,0.0004143,2]
[341237246,1730711449573,-150000.0,0.0004144,7]
[341237247,1730711449582,-500.0,0.0004144,2]
[341237248,1730711449592,-500.0,0.0004144,2]
[341237249,1730711449601,-500.0,0.0004144,2]
[341237250,1730711449610,-505.11800247,0.0004144,2]
[341237251,1730711449620,-500.0,0.0004144,2]
[341237252,1730711449630,-500.0,0.0004144,2]
[341237253,1730711449640,-500.0,0.0004144,2]
[341237254,1730711449650,-500.0,0.0004144,2]
[341237255,1730711449661,-500.0,0.0004144,2]
[341237256,1730711449670,-500.0,0.0004144,2]
[341237257,1730711449679,-500.0,0.0004144,2]
[341237258,1730711449688,-605.42550437,0.0004144,2]
[341237259,1730711449697,-500.0,0.0004144,2]
[341237260,1730711449706,-500.0,0.0004144,2]
[341237261,1730711449715,-500.0,0.0004144,2]
[341237262,1730711449723,-500.0,0.0004144,2]
[341237263,1730711449733,-581.19745208,0.0004144,2]
[341237264,1730711449742,-500.0,0.0004144,2]
[341237265,1730711449751,-500.0,0.0004144,2]
[341237266,1730711449763,-500.0,0.0004144,2]
[341237267,1730711449772,-311.40126866,0.0004144,2]
[341237268,1730711449781,-500.0,0.0004144,2]
[341237269,1730711449789,-500.0,0.0004144,2]
[341237270,1730711449800,-500.0,0.0004144,2]
[341237271,1730711449811,-500.0,0.0004144,2]
[341237272,1730711449821,-250.0,0.0004144,2]
[341237273,1730711449833,-500.0,0.0004144,2]
[341237274,1730711449843,-500.0,0.0004144,2]
[341237275,1730711449852,-229.60480572,0.0004144,2]
[341237276,1730711449862,-500.0,0.0004144,2]
[341237277,1730711449872,-500.0,0.0004144,2]
[341237278,1730711449882,-500.0,0.0004144,2]
[341237279,1730711449893,-500.0,0.0004144,2]
[341237280,1730711449903,-500.0,0.0004144,2]
[341237281,1730711449914,-500.0,0.0004144,2]
[341237282,1730711450004,-500.0,0.0004144,2]
[341237283,1730711450014,-541.63207468,0.0004144,2]
[341237284,1730711450023,-500.0,0.0004144,2]
[341237285,1730711450033,-500.0,0.0004144,2]
[341237286,1730711450042,-500.0,0.0004144,2]
[341237287,1730711450051,-500.0,0.0004144,2]
[341237288,1730711450060,-500.0,0.0004144,2]
[341237289,1730711450069,-173.34027512,0.0004144,2]
[341237290,1730711450078,-500.0,0.0004144,2]
[341237291,1730711450087,-506.19700045,0.0004144,2]
[341237292,1730711450096,-500.0,0.0004144,2]
[341237293,1730711450105,-507.55395502,0.0004144,2]
[341237294,1730711450115,-500.0,0.0004144,2]
[341237295,1730711450124,-500.0,0.0004144,2]
[341237296,1730711450133,-500.0,0.0004144,2]
[341237297,1730711450142,-527.76449111,0.0004144,2]
[341237298,1730711450152,-500.0,0.0004144,2]
[341237299,1730711450161,-500.0,0.0004144,2]
[341237300,1730711450170,-500.0,0.0004144,2]
[341237301,1730711450179,-500.0,0.0004144,2]
[341237302,1730711450190,-500.0,0.0004144,2]
[341237303,1730711450199,-506.46531039,0.0004144,2]
[341237304,1730711450210,-500.0,0.0004144,2]
[341237305,1730711450219,-500.0,0.0004144,2]
[341237306,1730711450230,-516.45169289,0.0004144,2]
[341237307,1730711450241,-500.0,0.0004144,2]
[341237308,1730711450250,-500.0,0.0004144,2]
[341237309,1730711450260,-603.99069594,0.0004144,2]
[341237310,1730711450269,-500.0,0.0004144,2]
[341237311,1730711450279,-500.0,0.0004144,2]
[341237312,1730711450288,-500.0,0.0004144,2]
[341237313,1730711450298,-500.0,0.0004144,2]
[341237314,1730711450309,-500.0,0.0004144,2]
[341237315,1730711450318,-500.0,0.0004144,2]
[341237316,1730711450327,-500.0,0.0004144,2]
[341237317,1730711450336,-500.0,0.0004144,2]
[341237318,1730711450346,-500.0,0.0004144,2]
[341237319,1730711450356,-150.0,0.0004144,2]
[341237320,1730711450366,-536.40250274,0.0004144,2]
[341237321,1730711450375,-500.0,0.0004144,2]
[341237322,1730711450385,-500.0,0.0004144,2]
[341237323,1730711450394,-500.0,0.0004144,2]
[341237324,1730711450404,-511.27335045,0.0004144,2]
[341237325,1730711450413,-500.0,0.0004144,2]
[341237326,1730711450423,-500.0,0.0004144,2]
[341237327,1730711450432,-500.0,0.0004144,2]
[341237328,1730711450441,-500.0,0.0004144,2]
[341237329,1730711450450,-500.0,0.0004144,2]
[341237330,1730711450459,-520.68582657,0.0004144,2]
[341237331,1730711450468,-500.0,0.0004144,2]
[341237332,1730711450477,-500.0,0.0004144,2]
[341237333,1730711450487,-500.0,0.0004144,2]
[341237334,1730711450496,-500.0,0.0004144,2]
[341237335,1730711450507,-500.0,0.0004144,2]
[341237336,1730711450517,-523.89392467,0.0004144,2]
[341237337,1730711450527,-500.0,0.0004144,2]
[341237338,1730711450536,-265.70658102,0.0004144,2]
[341237339,1730711450546,-500.0,0.0004144,2]
[341237340,1730711450555,-402.8135253,0.0004144,2]
[341237341,1730711450564,-500.0,0.0004144,2]
[341237342,1730711450574,-500.0,0.0004144,2]
[341237343,1730711450583,-532.57503242,0.0004144,2]
[341237344,1730711450593,-513.08820206,0.0004144,2]
[341237345,1730711450604,-500.0,0.0004144,2]
[341237346,1730711450614,-529.90547522,0.0004144,2]
[341237347,1730711450623,-500.0,0.0004144,2]
[341237348,1730711450633,-500.0,0.0004144,2]
[341237349,1730711450643,-517.84946599,0.0004144,2]
[341237350,1730711450652,-515.71168587,0.0004144,2]
[341237351,1730711450668,-512.2058662,0.0004144,2]
[341237352,1730711450677,-500.0,0.0004144,2]
[341237353,1730711450687,-500.0,0.0004144,2]
[341237354,1730711450696,-533.99359223,0.0004144,2]
[341237355,1730711450705,-500.0,0.0004144,2]
[341237356,1730711450714,-500.0,0.0004144,2]
[341237357,1730711450724,-500.0,0.0004144,2]
[341237358,1730711450733,-500.0,0.0004144,2]
[341237359,1730711450742,-500.0,0.0004144,2]
[341237360,1730711450752,-500.0,0.0004144,2]
[341237361,1730711450763,-500.0,0.0004144,2]
[341237362,1730711450772,-495.54407007,0.0004144,2]
[341237363,1730711450782,-500.0,0.0004144,2]
[341237364,1730711450791,-500.0,0.0004144,2]
[341237365,1730711450801,-500.0,0.0004144,2]
[341237366,1730711450811,-500.0,0.0004144,2]
[341237367,1730711450820,-537.59832235,0.0004144,2]
[341237368,1730711450829,-512.50458986,0.0004144,2]
[341237369,1730711450839,-500.0,0.0004144,2]
[341237370,1730711450848,-522.2321516,0.0004144,2]
[341237371,1730711450857,-534.22,0.0004144,2]
[341237372,1730711450867,-500.0,0.0004144,2]
[341237373,1730711450876,-518.81924414,0.0004144,2]
[341237374,1730711450885,-500.0,0.0004144,2]
[341237375,1730711450895,-532.97286093,0.0004144,2]
[341237376,1730711450905,-520.88349752,0.0004144,2]
[341237377,1730711450914,-568.06340935,0.0004144,2]
[341237378,1730711450924,-534.00332891,0.0004144,2]
[341237379,1730711450933,-500.0,0.0004144,2]
[341237380,1730711450943,-550.05874937,0.0004144,2]
[341237381,1730711450952,-533.88025394,0.0004144,2]
[341237382,1730711450962,-543.07851203,0.0004144,2]
[341237383,1730711450971,-500.0,0.0004144,2]
[341237384,1730711450980,-500.0,0.0004144,2]
[341237385,1730711450990,-500.0,0.0004144,2]
[341237386,1730711451000,-500.0,0.0004144,2]
[341237387,1730711451010,-500.0,0.0004144,2]
[341237388,1730711451019,-540.32103823,0.0004144,2]
[341237389,1730711451029,-500.0,0.0004144,2]
[341237390,1730711451038,-500.0,0.0004144,2]
[341237391,1730711451048,-526.26318261,0.0004144,2]
[341237392,1730711451056,-500.0,0.0004144,2]
[341237393,1730711451066,-500.0,0.0004144,2]
[341237394,1730711451075,-502.60993647,0.0004144,2]
[341237395,1730711451084,-500.0,0.0004144,2]
[341237396,1730711451094,-500.0,0.0004144,2]
[341237397,1730711451103,-500.0,0.0004144,2]
[341237398,1730711451113,-500.79136264,0.0004144,2]
[341237399,1730711451122,-500.0,0.0004144,2]
[341237400,1730711451131,-554.30690051,0.0004144,2]
[341237401,1730711451140,-500.0,0.0004144,2]
[341237402,1730711451149,-531.27675937,0.0004144,2]
[341237403,1730711451159,-500.0,0.0004144,2]
[341237404,1730711451168,-500.32494042,0.0004144,2]
[341237405,1730711451177,-500.0,0.0004144,2]
[341237406,1730711451187,-373.75987028,0.0004144,2]
[341237407,1730711451196,-511.3407572,0.0004144,2]
[341237408,1730711451205,-543.66720742,0.0004144,2]
[341237409,1730711451215,-500.55099401,0.0004144,2]
[341237410,1730711451224,-505.59889004,0.0004144,2]
[341237411,1730711451233,-506.91191827,0.0004144,2]
[341237412,1730711451242,-507.93877036,0.0004144,2]
[341237413,1730711451252,-513.2297925,0.0004144,2]